Cogmind - Beta 16 @@@ ROGUE MODE // 2026.01.11 @ 21:09:59 Player: naththebg Result: Self-destructed Performance ------------- Evolutions (5) 2500 Regions Visited (15) 3000 Robots Destroyed (248) 1240 Value Destroyed (12182) 12182 Prototype IDs (11) 220 Alien Tech Used (0) 0 Bonus (10153) 10153 TOTAL SCORE: 29295 Bonus ------- High Alert Combat Kills 4102 Follower Combat Kills 2700 Entered Garrisons 1000 Used RIF Installer 2500 Friendly Fire -149 Cogmind --------- Core Integrity 809/1000 Matter 247/300 Energy 29/100 System Corruption 0% Temperature Cool (72) Movement Rolling (140) Ox4 Location -5/Factory Parts ------- > --- POWER (1) -------- (None) > --- PROPULSION (4) --- Armored Wheel > --- UTILITY (9) ------ High-capacity Storage Unit Advanced Visual Processing Unit Relay Coupler [NC] (36) > --- WEAPON (3) ------- Advanced Plasma Cannon Shock Maul > --- INVENTORY (20) --- Improved Deuterium Engine Neutrino Core Advanced Heat Sink Matter Compressor (250) Relay Coupler [NC] (25) Relay Coupler [NC] (36) Relay Coupler [Swarmer] (33) Relay Coupler [Grunt] (42) Relay Coupler [Grunt] (43) Relay Coupler [Sentry] (28) Relay Coupler [Sentry] (25) Relay Coupler [Specialist] (22) Relay Coupler [Hunter] (18) Relay Coupler [Heavy] (15) Heavy Mass Driver Peak State ------------ > --- POWER ------------ Improved Deuterium Engine > --- PROPULSION ------- Armored Huge Wheel Armored Huge Wheel > --- UTILITY ---------- Improved Cooling System High-capacity Storage Unit Advanced Visual Processing Unit Centrium Light Armor Plating Relay Coupler [NC] Relay Coupler [Grunt] Relay Coupler [Sentry] > --- WEAPON ----------- Gauss Rifle Precision Grenade Launcher Remote Datajack > --- INVENTORY -------- Improved Deuterium Engine Hybrid Deuterium Engine Armored Wheel Advanced Heat Sink Matter Compressor Relay Coupler [NC] Relay Coupler [NC] Relay Coupler [Swarmer] Relay Coupler [Grunt] Relay Coupler [Grunt] Relay Coupler [Sentry] Relay Coupler [Sentry] Relay Coupler [Sentry] Relay Coupler [Specialist] Relay Coupler [Hunter] Relay Coupler [Heavy] Heavy Mass Driver Precision Grenade Launcher Shock Maul [Rating: 66] Favorites ----------- Power Improved Deuterium Engine Engine Improved Deuterium Engine Power Core Neutrino Core Propulsion Light Treads Treads Light Treads Leg Carbon-fiber Leg Wheel Armored Huge Wheel Utility High-capacity Storage Unit Device Improved Heat Sink Storage High-capacity Storage Unit Processor Advanced Visual Processing Unit Hackware Relay Coupler [NC] Protection Hardened Medium Armor Plating Weapon Heavy Mass Driver Energy Gun Medium Laser Energy Cannon Advanced Beam Cannon Ballistic Gun Gauss Rifle Ballistic Cannon Heavy Mass Driver Launcher Precision Grenade Launcher Special Weapon Remote Datajack Impact Weapon Shock Maul Special Melee Weapon Datajack Build | -11 -10 -10 -9 -9 -9 -9 -7 -7 -7 -7 -6 -6 -6 -6 -5 ------- Run | Yrd Mat Min Mat Sto Gar Rec Fac Gar Fac Gar Fac Gar Fac Gar Fac Slots Evolved 10 | . . . 2 . . . 4 . . . 2 . . . 2 Power . | . . . . . . . . . . . . . . . . Propulsion 2 | . . . 1 . . . 1 . . . . . . . . Utility 7 | . . . 1 . . . 2 . . . 2 . . . 2 Weapon 1 | . . . . . . . 1 . . . . . . . . Parts Attached 122 | 6 5 4 11 4 13 3 17 15 11 9 5 9 . 6 4 Power 11 | 1 . 1 2 . . . 1 1 2 1 . 1 . 1 . Engine 10 | 1 . 1 2 . . . 1 1 2 1 . 1 . . . Core 1 | . . . . . . . . . . . . . . 1 . Reactor . | . . . . . . . . . . . . . . . . Propulsion 33 | 2 2 . 5 2 5 2 4 4 4 2 . . . 1 . Treads 19 | 1 1 . 4 2 5 2 3 1 . . . . . . . Leg 6 | 1 1 . . . . . . 3 1 . . . . . . Wheel 8 | . . . 1 . . . 1 . 3 2 . . . 1 . Hover . | . . . . . . . . . . . . . . . . Flight . | . . . . . . . . . . . . . . . . Utility 42 | 1 2 1 2 . 4 . 5 7 2 4 3 7 . 2 2 Device 11 | . 1 1 . . 1 . 2 2 . 1 1 1 . . 1 Storage 3 | 1 1 . . . . . 1 . . . . . . . . Processor 3 | . . . . . . . 1 1 . . . 1 . . . Hackware 15 | . . . . . 1 . . 2 1 3 1 5 . 1 1 Protection 10 | . . . 2 . 2 . 1 2 1 . 1 . . 1 . Artifact . | . . . . . . . . . . . . . . . . Weapon 36 | 2 1 2 2 2 4 1 7 3 3 2 2 1 . 2 2 Energy Gun 1 | 1 . . . . . . . . . . . . . . . Energy Cannon 9 | . . 1 2 . 2 . . 1 . 1 1 . . . 1 Ballistic Gun 6 | 1 1 . . . . 1 2 . . . . . . 1 . Ballistic Cannon 10 | . . 1 . . . . 4 2 2 1 . . . . . Launcher 4 | . . . . 1 1 . . . 1 . . . . . 1 Special Weapon 4 | . . . . . . . 1 . . . 1 1 . 1 . Impact Weapon 1 | . . . . 1 . . . . . . . . . . . Slashing Weapon . | . . . . . . . . . . . . . . . . Piercing Weapon . | . . . . . . . . . . . . . . . . Special Melee Weapon 1 | . . . . . 1 . . . . . . . . . . Unidentified Prototypes 4 | . . . 1 1 . . . . 1 . . . . 1 . Parts Lost 32 | . 2 . . . 3 . 4 7 2 2 . 1 . 3 8 Power 2 | . . . . . . . . . . . . 1 . . 1 Propulsion 13 | . 1 . . . 2 . 3 5 . . . . . 1 1 Utility 9 | . 1 . . . . . 1 1 1 1 . . . 1 3 Weapon 8 | . . . . . 1 . . 1 1 1 . . . 1 3 Highest Loss Streak 4 | . 1 . . . 1 . 4 3 1 1 . 1 . 2 4 To Critical Strikes 1 | . . . . . . . . . 1 . . . . . . Average Backups 16 | 4 7 10 14 15 14 15 18 17 16 18 19 19 20 18 17 Power 1 | . 1 1 1 1 1 1 1 . 1 2 3 2 2 2 2 Propulsion 1 | 3 3 3 3 3 2 3 1 . 1 2 2 1 1 . . Utility 7 | . . 1 3 4 4 6 6 8 8 9 10 12 13 13 12 Weapon 4 | 1 3 4 6 6 5 4 8 7 4 3 3 2 3 3 2 Tool/Special . | . . . . . . . . . . . . . . . . Unused Backups 41 | . 1 . 5 1 1 . 5 6 1 . 1 6 . 1 13 Power 5 | . . . 1 . . . . . 1 . . . . 1 2 Propulsion 3 | . . . 2 . . . . . . . 1 . . . . Utility 24 | . . . 2 . . . . 5 . . . 6 . . 11 Weapon 8 | . 1 . . 1 1 . 4 1 . . . . . . . Tool/Special 1 | . . . . . . . 1 . . . . . . . . Average Slot Usage (%) 86 | . 91 92 96 100 99 100 97 82 78 71 71 79 80 79 52 Engine 8 | . 14 14 11 11 11 11 7 6 7 7 6 5 6 3 . Treads 14 | . 10 28 30 33 32 33 28 11 . . . . . . . Leg 2 | . 17 . . . . . . 8 7 . . . . . . Wheel 6 | . . . 1 . . . . 5 17 18 13 13 13 12 7 Device 6 | . 6 6 11 11 11 11 8 6 . 1 9 6 6 6 2 Storage 8 | . 14 14 11 11 11 11 7 7 7 7 6 6 6 6 5 Processor 4 | . . . . . . . 5 11 7 7 6 6 6 6 5 Hackware 6 | . . . . . 1 11 7 . 7 8 13 20 20 20 16 Protection 5 | . . . 9 11 9 . 5 5 7 5 1 6 6 5 . Energy Cannon 6 | . . 7 20 21 20 11 1 2 . 4 . . . . . Ballistic Gun 3 | . 14 6 . . . 11 17 . . . . . . 1 . Ballistic Cannon 4 | . . 7 1 . . . 3 9 7 6 6 5 6 . . Special Weapon 2 | . . . . . . . . 1 4 1 5 4 6 6 4 Peak Build Rating 66 | 6 7 10 21 24 22 21 37 54 56 58 64 65 63 66 54 Average Rating 38 | 4 6 7 18 21 21 21 34 40 53 53 57 62 63 58 37 On Entrance 33 | . 6 6 10 21 22 18 21 36 50 53 54 64 63 63 49 Avg Prop Armor Cover (%) 8 | 8 8 . 14 . . . 13 8 5 . . . . . . Naked Turns . | . . . . . . . . . . . . . . . . Heaviest Build 92 | 14 30 32 45 45 47 39 80 90 91 92 84 82 79 79 68 Greatest Support 80 | 20 40 40 60 60 60 60 80 60 55 56 56 56 56 56 40 Greatest Overweight (x) 8 | . 1 . 4 . 1 . 3 8 3 1 1 1 1 1 3 Average Overweight (x) 1 | . . . . . . . . 3 1 1 1 1 1 1 2 Largest Inventory Capacity 20 | 8 15 15 15 15 15 15 20 20 20 20 20 20 20 20 20 Average Capacity 18 | 6 12 15 15 15 15 15 19 20 20 20 20 20 20 20 20 Most Carried 20 | 6 9 14 15 15 15 15 20 20 20 20 20 20 20 20 19 Average Carried 17 | 4 7 10 14 14 14 15 18 19 18 19 19 19 20 19 18 Final Capacity 20 | 8 15 15 15 15 15 15 20 20 20 20 20 20 20 20 20 Final Carried 20 | 6 9 14 15 15 15 15 19 19 18 20 20 20 20 19 16 Class Distribution -------------------- 24% | Scavenger-Mutant 21% | Bothacker-Tank 13% | Scavenger-Tank 12% | Bothacker-Skirmisher 11% | Mutant 6% | Botlord-Mutant 6% | Botlord-Tank 3% | Bothacker-Mutant Dominant Class ---------------- Mutant | -10/Materials Mutant | -10/Mines Scavenger-Mutant | -9/Materials Scavenger-Mutant | -9/Storage Scavenger-Mutant | -9/Garrison Scavenger-Mutant | -9/Recycling Scavenger-Tank | -7/Factory Bothacker-Skirmisher | -7/Garrison Bothacker-Tank | -7/Factory Bothacker-Tank | -7/Garrison Bothacker-Skirmisher | -6/Factory Botlord-Tank | -6/Garrison Botlord-Tank | -6/Factory Botlord-Mutant | -6/Garrison Botlord-Mutant | -5/Factory Resources | -11 -10 -10 -9 -9 -9 -9 -7 -7 -7 -7 -6 -6 -6 -6 -5 ----------- Run | Yrd Mat Min Mat Sto Gar Rec Fac Gar Fac Gar Fac Gar Fac Gar Fac Matter Collected 7931 | 215 182 69 131 131 249 55 889 1731 854 1364 240 1213 . 608 . Remotely . | . . . . . . . . . . . . . . . . Salvage Created 8204 | . 258 125 610 550 1235 147 1586 719 703 975 257 410 . 603 26 Parts 476 | . 19 14 41 38 77 11 92 44 35 29 11 35 . 29 1 Haulers Intercepted 6 | . 1 . 1 3 . . 1 . . . . . . . . Recyclers Shooed 2 | . . . . 2 . . . . . . . . . . . Parts Field Recycled . | . . . . . . . . . . . . . . . . Retrieved Matter . | . . . . . . . . . . . . . . . . Parts Self-Destructed . | . . . . . . . . . . . . . . . . Prevented . | . . . . . . . . . . . . . . . . Parts Restored . | . . . . . . . . . . . . . . . . Kills | -11 -10 -10 -9 -9 -9 -9 -7 -7 -7 -7 -6 -6 -6 -6 -5 ------- Run | Yrd Mat Min Mat Sto Gar Rec Fac Gar Fac Gar Fac Gar Fac Gar Fac Combat Hostiles Destroyed 215 | . 8 5 12 12 32 2 26 32 21 23 5 20 . 15 2 Melee 1 | . . . . . . . . 1 . . . . . . . Guns 31 | . 8 3 . . . 1 19 . . . . . . . . Cannons 122 | . . 2 12 8 27 1 3 22 16 18 5 7 . 1 . AOE 58 | . . . . 4 4 . 4 9 5 3 . 13 . 14 2 Classes Destroyed 20 | . 4 . 2 1 3 1 4 2 2 . . 1 . . . Worker 5 | . . . . . . . 3 . 2 . . . . . . Builder 4 | . . . . . . . 2 . 1 . 1 . . . . Hauler 6 | . 1 . 1 3 . . 1 . . . . . . . . Recycler 4 | . . . . . . 1 2 . . . 1 . . . . Mechanic 2 | . . . . . . . 1 . 1 . . . . . . Operator 3 | . . . 1 . . . 2 . . . . . . . . Watcher 5 | . 1 . 2 1 . . . . 1 . . . . . . Swarmer 57 | . 6 3 1 4 8 . 3 11 . 3 . 13 . 3 2 Cutter 3 | . . . . . . . . 3 . . . . . . . Saboteur 1 | . . . . . . . . 1 . . . . . . . Grunt 81 | . 2 2 8 4 12 . 9 8 12 10 4 1 . 9 . Brawler 9 | . . . . . 3 . 4 . 1 1 . . . . . Duelist 8 | . . . . 1 . . . 2 3 . . 2 . . . Protector 1 | . . . . . . . . . 1 . . . . . . Sentry 29 | . . . 3 3 7 2 4 6 2 1 1 . . . . Specialist 4 | . . . . . 1 . . . . 2 . 1 . . . Hunter 10 | . . . . . . . 3 1 . 2 . . . 4 . Programmer 13 | . . . . . 1 . 3 . 2 4 . 2 . 1 . Behemoth 1 | . . . . . . . . . . . . 1 . . . Assembled 1 | . . . . . . . . . 1 . . . . . . Savage 1 | . . . . . . . 1 . . . . . . . . Infiltrator 1 | . . . . . . . . . . . . . . 1 . Best Kill Streak 9 | . 3 3 4 6 7 1 7 7 9 4 2 4 . 4 2 Combat Bots Only 7 | . 3 3 3 5 7 1 5 7 5 4 2 4 . 4 2 Max Kills in Single Turn 4 | . 2 2 1 1 3 1 3 3 4 2 1 4 . 3 2 Gunslinging 1 | . 1 1 . . . . 1 . . . . . . . . Exploded 4 | . . . . 1 3 . 2 3 4 2 . 4 . 3 2 Melee 1 | . . . . . . . . 1 . . . . . . . Uniques/NPCs Destroyed . | . . . . . . . . . . . . . . . . Combat | -11 -10 -10 -9 -9 -9 -9 -7 -7 -7 -7 -6 -6 -6 -6 -5 -------- Run | Yrd Mat Min Mat Sto Gar Rec Fac Gar Fac Gar Fac Gar Fac Gar Fac Hostile Shots Fired 1153 | . 52 20 52 30 102 . 305 182 131 117 22 62 . 46 32 Missed 354 | . 13 5 14 9 32 . 106 60 34 33 10 20 . 10 8 Hits 799 | . 39 15 38 21 70 . 199 122 97 84 12 42 . 36 24 Melee 29 | . . . . 2 2 . 2 5 18 . . . . . . Projectile 770 | . 39 15 38 19 68 . 197 117 79 84 12 42 . 36 24 AOE 5 | . . . . . . . . 2 . . . 2 . . 1 Critical Strikes 20 | . . . 1 1 1 . . 1 6 3 1 2 . 3 1 Part Disruptions 1 | . . . . . . . . . . . . . . 1 . Damage Taken 10865 | . 367 129 508 286 758 . 1898 1327 1731 1292 201 783 . 765 820 Core 1305 | . 66 16 121 10 48 . 154 115 221 80 18 130 . 135 191 Absorbed by Shields 85 | . . . . . 85 . . . . . . . . . . Regen/Repaired (Parts) 1055 | . . . . . 6 . 143 83 429 . 30 364 . . . Core Remaining (%) 61 | 100 . 67 . . . 55 . . . 18 . . . 66 . Volleys Fired 731 | . 34 8 34 30 71 2 82 94 77 138 38 73 . 42 8 Largest 3 | . 2 2 2 2 2 2 3 3 1 1 1 1 . 1 1 Hottest 148 | . 70 90 136 136 136 88 132 148 65 80 65 65 . 65 98 Shots Fired 1042 | . 68 16 68 55 129 5 212 112 77 138 38 73 . 43 8 Gun 275 | . 68 10 . . . 3 189 . . . . . . 5 . Cannon 635 | . . 6 68 50 127 2 20 92 67 127 26 40 . 7 3 Launcher 53 | . . . . 5 2 . 2 6 1 3 . 10 . 23 1 Special 79 | . . . . . . . 1 14 9 8 12 23 . 8 4 Kinetic 532 | . 34 8 7 . . 3 207 73 67 55 26 40 . 12 . Thermal 378 | . 34 8 61 50 127 2 2 19 . 72 . . . . 3 Explosive 53 | . . . . 5 2 . 2 6 1 3 . 10 . 23 1 Electromagnetic . | . . . . . . . . . . . . . . . . Robot Hit Streak 22 | . 9 5 12 10 8 8 12 13 18 22 13 14 . 12 9 Robot Miss Streak 9 | . 4 3 3 2 3 . 5 9 5 2 3 4 . 1 2 Penetration Max 1 | . . . . . . . 1 . . . . . . . . Secondary Targets 7 | . 3 1 . . . . 3 . . . . . . . . Max Gunslinging Chain 1 | . 1 1 . . . . 1 . . . . . . . . Shots Hit Robots 619 | . 44 9 39 35 69 3 132 66 43 88 25 38 . 22 6 Core Hits 345 | . 15 6 19 18 33 3 77 43 26 32 7 26 . 37 3 Critical Kills 6 | . . . . 1 1 . 3 . . 1 . . . . . Critical Parts Destroyed . | . . . . . . . . . . . . . . . . Critical Strikes 28 | . 2 . . 1 1 . 3 6 2 6 2 3 . 2 . Burn 2 | . 2 . . . . . . . . . . . . . . Meltdown 3 | . . . . 1 1 . . . . 1 . . . . . Destroy 3 | . . . . . . . 3 . . . . . . . . Blast 20 | . . . . . . . . 6 2 5 2 3 . 2 . Melee Attacks 19 | . . . . 1 2 . 1 . 10 . . . . . 5 Impact 16 | . . . . 1 . . . . 10 . . . . . 5 Slashing . | . . . . . . . . . . . . . . . . Piercing . | . . . . . . . . . . . . . . . . Sneak Attacks 2 | . . . . . 1 . 1 . . . . . . . . Combat Hostiles . | . . . . . . . . . . . . . . . . Follow-up Attacks . | . . . . . . . . . . . . . . . . Damage Inflicted 24737 | . 558 128 834 943 1764 71 3304 3344 3961 3821 1140 2491 . 2096 282 Guns 3209 | . 553 77 . . . 36 2513 . . . . . . 30 . Cannons 14848 | . . 50 818 698 1504 24 306 2573 2471 3636 1000 1365 . 368 35 Explosions 6607 | . . . . 228 255 . 477 771 1490 175 140 1126 . 1698 247 Melee . | . . . . . . . . . . . . . . . . Ramming 73 | . 5 1 16 17 5 11 8 . . 10 . . . . . Kinetic 13427 | . 276 68 56 . . 36 2819 2505 2471 2433 1000 1365 . 398 . Thermal 4700 | . 277 59 762 698 1504 24 70 68 . 1203 . . . . 35 Explosive 6537 | . . . . 228 255 . 407 771 1490 175 140 1126 . 1698 247 Electromagnetic . | . . . . . . . . . . . . . . . . Impact . | . . . . . . . . . . . . . . . . Slashing . | . . . . . . . . . . . . . . . . Piercing . | . . . . . . . . . . . . . . . . Highest Corruption 10 | . . . . . 6 6 2 3 7 10 1 1 1 1 . Average Corruption 3 | . . . . . 3 6 2 2 5 9 1 1 1 1 . Corruption Purged . | . . . . . . . . . . . . . . . . Corruption Blocked . | . . . . . . . . . . . . . . . . Effects 212 | . . . . . 28 14 7 35 47 63 6 6 1 5 . Message Errors 49 | . . . . . 7 3 2 5 12 14 2 2 1 1 . Matter Fused 51 | . . . . . 8 3 3 9 9 15 1 3 . . . Heat Flow Errors 25 | . . . . . 1 1 . 2 7 11 2 . . 1 . Energy Discharges 29 | . . . . . 2 5 1 8 3 9 . . . 1 . Parts Rejected 5 | . . . . . . . . 3 1 1 . . . . . Parts Fused 3 | . . . . . . . . . 2 1 . . . . . Data Loss (minor) 20 | . . . . . 5 . 1 1 7 4 . 1 . 1 . Data Loss (major) 13 | . . . . . 2 1 . 3 3 4 . . . . . Misfires 11 | . . . . . 2 1 . 4 1 2 . . . 1 . Alerts 3 | . . . . . 1 . . . 1 . 1 . . . . Weapon Failures 3 | . . . . . . . . . 1 2 . . . . . Overload Shots . | . . . . . . . . . . . . . . . . Overflow Damage 1418 | . . . 2 . 23 . 80 133 326 385 54 374 . 28 13 Projectiles 1181 | . . . 2 . 17 . 20 133 274 368 48 319 . . . Explosions 237 | . . . . . 6 . 60 . 52 17 6 55 . 28 13 Melee . | . . . . . . . . . . . . . . . . Knockbacks 55 | . 1 . 1 . . . . 13 7 14 3 13 . 3 . Impact 1 | . 1 . . . . . . . . . . . . . . Kinetic 45 | . . . 1 . . . . 12 7 13 2 8 . 2 . Secondary 9 | . . . . . . . . 1 . 1 1 5 . 1 . Self-Inflicted Damage 352 | . . . . . . . 2 46 100 5 . 31 . 112 56 Shots 13 | . . . . . . . 1 2 1 . . 3 . 5 1 Rammed 14 | . . 1 3 3 4 1 1 . . 1 . . . . . Targets Rammed 18 | . 3 1 3 3 4 2 1 . . 1 . . . . . Kicked 3 | . 3 . . . . . . . . . . . . . . Crushed 1 | . . . . . . 1 . . . . . . . . . Highest Temperature 348 | . 86 60 201 268 288 231 66 181 289 348 228 14 . 192 72 Average Temperature 76 | . 30 25 72 92 74 128 15 37 92 99 124 10 . 114 40 Received Heat Transfer 2853 | . 78 9 198 75 235 . 546 363 482 324 93 87 . 255 108 Effects 9 | . . . . . 3 . . . 1 5 . . . . . Energy Bleed 3 | . . . . . 1 . . . 1 1 . . . . . Interference 4 | . . . . . 2 . . . . 2 . . . . . Damage (minor) 2 | . . . . . . . . . . 2 . . . . . Siege Activations . | . . . . . . . . . . . . . . . . Martial Activations . | . . . . . . . . . . . . . . . . Shielding Activations . | . . . . . . . . . . . . . . . . Robots Disrupted . | . . . . . . . . . . . . . . . . Combat Hostiles . | . . . . . . . . . . . . . . . . Robots Corrupted . | . . . . . . . . . . . . . . . . Combat Hostiles . | . . . . . . . . . . . . . . . . Parts Fried . | . . . . . . . . . . . . . . . . Impact Corruptions 2 | . . . . . . . . . . . . 2 . . . Robots Melted 6 | . . . . 1 1 . . . . 4 . . . . . Combat Hostiles 3 | . . . . . 1 . . . . 2 . . . . . Parts Melted 16 | . 3 1 1 . 4 . . . . 7 . . . . . Heat Transferred 8924 | . 962 148 1406 1258 2552 37 50 111 . 2350 . . . . 50 Parts Sabotaged 11 | . . . . . . . . 11 . . . . . . . Parts Stolen . | . . . . . . . . . . . . . . . . Parts Stripped . | . . . . . . . . . . . . . . . . Power Chain Reactions . | . . . . . . . . . . . . . . . . Alert | -11 -10 -10 -9 -9 -9 -9 -7 -7 -7 -7 -6 -6 -6 -6 -5 ------- Run | Yrd Mat Min Mat Sto Gar Rec Fac Gar Fac Gar Fac Gar Fac Gar Fac Maximum Alert Level 5 | . . . . . 4 2 2 5 4 5 4 5 4 5 4 Low Security (%) 25 | 100 100 100 100 100 10 37 39 . . . . . . . . Level 1 3 | . . . . . 3 1 21 2 . . . . . . . Level 2 14 | . . . . . 32 61 39 29 . . . . . . . Level 3 18 | . . . . . 46 . . 16 67 7 30 13 . 6 35 Level 4 19 | . . . . . 7 . . 28 32 43 69 21 100 5 64 Level 5 18 | . . . . . . . . 22 . 48 . 64 . 88 . High Security . | . . . . . . . . . . . . . . . . Max Security . | . . . . . . . . . . . . . . . . Peak Influence 2982 | . 75 70 104 180 1176 553 543 2056 1419 2150 1236 2982 1565 2323 1219 Initial 1565 | . . . . . 106 529 6 373 1079 987 1128 858 1565 1060 1219 Average 918 | . 25 17 35 110 721 319 272 1103 1113 1590 1139 2012 1541 1920 1120 Influence Increases 11747 | . 247 120 386 408 1140 65 1010 1763 962 1223 555 2184 . 1483 201 Destroy 0b10 Robot/C 5640 | . 160 100 240 240 700 40 580 680 460 580 220 880 . 660 100 Destroy 0b10 Robot/NC 170 | . 10 . 20 20 . 5 55 . 30 15 15 . . . . Destroy Leader 762 | . 34 20 76 68 40 . 162 30 112 60 70 30 . 40 20 Allied During Kill 1605 | . . . . . 26 6 31 24 38 66 124 838 . 436 16 Successful Hack 183 | . 11 . 20 26 . 13 11 28 14 28 . . . . 32 Disable Machine 525 | . . . 15 15 15 . 150 60 165 15 90 . . . . Anti-Garrison Action 1800 | . . . . . 300 . . 800 . 300 . 250 . 150 . Destroy Structure 837 | . 2 . . 39 44 1 21 126 113 114 36 141 . 182 18 Lose Combat Pursuer 225 | . 30 . 15 . 15 . . 15 30 45 . 45 . 15 15 Influence Decreases 10657 | . 247 120 384 246 128 1225 492 241 1607 484 1478 429 1467 675 1434 Entered New Map 6646 | . . . . 2 58 647 10 161 977 424 1022 369 1417 455 1104 Time Decay 2677 | . 225 120 352 244 . 278 412 . 530 . 286 . 50 . 180 Lost Part 320 | . 20 . . . 30 . 40 70 20 20 . 10 . 30 80 Lost Ally 530 | . . . . . 40 . 30 10 80 40 20 50 . 190 70 Purge Threat 484 | . 2 . 32 . . 300 . . . . 150 . . . . Squads Dispatched 34 | . 1 . 2 1 . . 12 . 7 . 5 . . . 6 Investigation 1 | . . . 1 . . . . . . . . . . . . Extermination 6 | . . . . . . . 3 . 2 . 1 . . . . Reinforcement 12 | . 1 . 1 1 . . 3 . 3 . 2 . . . 1 Assault 9 | . . . . . . . 2 . 2 . 1 . . . 4 Garrison 6 | . . . . . . . 4 . . . 1 . . . 1 Intercept . | . . . . . . . . . . . . . . . . Searches Triggered . | . . . . . . . . . . . . . . . . Construction Impeded 2 | . . . . . . . . . 1 . 1 . . . . Haulers Reinforced 1 | . . . . . . . . . 1 . . . . . . Active Scanning Responses . | . . . . . . . . . . . . . . . . Cargo Convoy Interrupts . | . . . . . . . . . . . . . . . . Alert ID Control Effect 2 | . . . . . . . . . . . . 2 . . . Stealth | -11 -10 -10 -9 -9 -9 -9 -7 -7 -7 -7 -6 -6 -6 -6 -5 --------- Run | Yrd Mat Min Mat Sto Gar Rec Fac Gar Fac Gar Fac Gar Fac Gar Fac Distress Signals 7 | . . . 1 2 . . . . 3 . . . . . 1 Communications Jammed . | . . . . . . . . . . . . . . . . Distress Signals . | . . . . . . . . . . . . . . . . Times Spotted 359 | . 16 5 20 14 38 . 34 40 42 31 18 49 . 42 10 Peak Tracking Total 9 | . 3 3 6 5 6 . 4 6 6 4 5 4 . 9 9 Tactical Retreats 15 | . 2 . 1 . 1 . . 1 2 3 . 3 . 1 1 Traps | -11 -10 -10 -9 -9 -9 -9 -7 -7 -7 -7 -6 -6 -6 -6 -5 ------- Run | Yrd Mat Min Mat Sto Gar Rec Fac Gar Fac Gar Fac Gar Fac Gar Fac Traps Triggered 23 | . . . . . 2 . . 5 1 8 1 1 . 4 1 Indirectly . | . . . . . . . . . . . . . . . . Trap Hack Attempts . | . . . . . . . . . . . . . . . . Triggered . | . . . . . . . . . . . . . . . . Disarmed . | . . . . . . . . . . . . . . . . Reprogrammed . | . . . . . . . . . . . . . . . . Reused . | . . . . . . . . . . . . . . . . Traps Extracted . | . . . . . . . . . . . . . . . . Installed . | . . . . . . . . . . . . . . . . Triggered . | . . . . . . . . . . . . . . . . Machines | -11 -10 -10 -9 -9 -9 -9 -7 -7 -7 -7 -6 -6 -6 -6 -5 ---------- Run | Yrd Mat Min Mat Sto Gar Rec Fac Gar Fac Gar Fac Gar Fac Gar Fac Machines Disabled 54 | . 1 . 1 1 3 . 10 9 11 5 6 3 . 4 . Max in Single Turn 3 | . 1 . 1 1 1 . 3 2 3 1 2 1 . 2 . Garrison Access 4 | . . . . . . . 1 . 2 . . . . . 1 Garrison Relay 13 | . . . . . 1 . . 3 . 4 . 3 . 2 . Phase Generator 3 | . . . . . . . . 1 . . . 1 . 1 . Machines Repaired . | . . . . . . . . . . . . . . . . Machines Dismantled . | . . . . . . . . . . . . . . . . Machines Sabotaged . | . . . . . . . . . . . . . . . . Overloaded Fab Kills . | . . . . . . . . . . . . . . . . Hacking | -11 -10 -10 -9 -9 -9 -9 -7 -7 -7 -7 -6 -6 -6 -6 -5 --------- Run | Yrd Mat Min Mat Sto Gar Rec Fac Gar Fac Gar Fac Gar Fac Gar Fac Machines Accessed 62 | . 4 2 5 6 2 6 9 3 7 3 5 1 1 2 6 Terminals 39 | . 4 1 4 5 2 4 3 3 3 3 2 1 . 2 2 Fabricators 5 | . . . . . . . 3 . 1 . 1 . . . . Repair Stations 2 | . . . . . . . 1 . . . . . . . 1 Recycling Units 4 | . . . . . . 2 . . . . . . . . 2 Scanalyzers 3 | . . . 1 . . . . . . . 1 . . . 1 Garrison Access 8 | . . . . 1 . . 2 . 3 . 1 . 1 . . Total Hacks 130 | . 10 3 12 13 5 21 16 5 12 5 7 2 1 4 14 Successful 62 | . 6 2 7 7 1 7 9 2 6 2 3 1 1 1 7 Failed 65 | . 4 1 4 6 4 14 7 3 6 3 3 1 . 3 6 Catastrophic 17 | . . . 1 2 1 3 2 2 . 1 2 . . . 3 Database Lockouts 3 | . . . 1 . . . . . . . 1 . . . 1 Manual 47 | . 6 . 6 7 . 8 7 . 6 . 2 . . . 5 Terminals 88 | . 10 2 9 12 5 14 7 5 7 5 2 2 . 4 4 Fabricators 8 | . . . . . . . 4 . 2 . 2 . . . . Repair Stations 3 | . . . . . . . 2 . . . . . . . 1 Recycling Units 11 | . . . . . . 7 . . . . . . . . 4 Scanalyzers 10 | . . . 3 . . . . . . . 2 . . . 5 Garrison Access 9 | . . . . 1 . . 3 . 3 . 1 . 1 . . Terminal Hacks 24 | . 4 2 3 2 1 4 1 2 1 2 . 1 . 1 . Robot Analysis 1 | . 1 . . . . . . . . . . . . . . Prototype ID Bank 2 | . 1 . . . . 1 . . . . . . . . . Open Door 3 | . . 1 . 1 1 . . . . . . . . . . Level Access Points 1 | . . . . . . 1 . . . . . . . . . Branch Access Points 1 | . . . 1 . . . . . . . . . . . . Emergency Access Points 3 | . . . . . . . . 1 . 1 . 1 . . . Unreport Threat 5 | . 1 . 2 . . 2 . . . . . . . . . Locate Traps 3 | . . . . 1 . . 1 . 1 . . . . . . Zone Layout 2 | . 1 1 . . . . . . . . . . . . . Patrol Navigation 3 | . . . . . . . . 1 . 1 . . . 1 . Fabricator Hacks 2 | . . . . . . . 1 . . . 1 . . . . Network Status 2 | . . . . . . . 1 . . . 1 . . . . Repair Station Hacks . | . . . . . . . . . . . . . . . . Recycling Unit Hacks 3 | . . . . . . 2 . . . . . . . . 1 Retrieve Components 3 | . . . . . . 2 . . . . . . . . 1 Scanalyzer 7 | . . . 2 . . . . . . . 1 . . . 4 Retrieve Study 7 | . . . 2 . . . . . . . 1 . . . 4 Garrison Access Hacks 9 | . . . . 1 . . 3 . 3 . 1 . 1 . . Unlock Access 6 | . . . . 1 . . 2 . 1 . 1 . 1 . . Seal Access 3 | . . . . . . . 1 . 2 . . . . . . Unauthorized Hacks 17 | . 2 . 2 4 . 1 4 . 2 . . . . . 2 Terminals 14 | . 2 . 2 4 . 1 1 . 2 . . . . . 2 Botnet 8 | . 1 . 1 3 . 1 . . 1 . . . . . 1 Operators 6 | . 1 . 1 1 . . 1 . 1 . . . . . 1 Fabricators 2 | . . . . . . . 2 . . . . . . . . Report 1 | . . . . . . . 1 . . . . . . . . Liberate 1 | . . . . . . . 1 . . . . . . . . Repair Stations 1 | . . . . . . . 1 . . . . . . . . Mechanics 1 | . . . . . . . 1 . . . . . . . . Recycling Units . | . . . . . . . . . . . . . . . . Scanalyzers . | . . . . . . . . . . . . . . . . Garrison Access . | . . . . . . . . . . . . . . . . Data Cores Recovered 2 | . . . . . . . 2 . . . . . . . . Used 1 | . . . . . . . 1 . . . . . . . . Hacking Detections 42 | . 3 1 3 3 2 5 5 2 5 2 3 1 1 1 5 Full Trace Events 4 | . . . 1 . 1 . . 2 . . . . . . . Feedback Events . | . . . . . . . . . . . . . . . . Feedback Blocked . | . . . . . . . . . . . . . . . . Robot Schematics Acquired . | . . . . . . . . . . . . . . . . Robots Built . | . . . . . . . . . . . . . . . . Authchips . | . . . . . . . . . . . . . . . . Time . | . . . . . . . . . . . . . . . . Total Robot Build Rating . | . . . . . . . . . . . . . . . . Part Schematics Acquired . | . . . . . . . . . . . . . . . . Parts Built . | . . . . . . . . . . . . . . . . Authchips . | . . . . . . . . . . . . . . . . Time . | . . . . . . . . . . . . . . . . Total Part Build Rating . | . . . . . . . . . . . . . . . . Part Studies Acquired 7 | . . . 2 . . . . . . . 1 . . . 4 Parts Repaired . | . . . . . . . . . . . . . . . . Time . | . . . . . . . . . . . . . . . . Parts Recycled . | . . . . . . . . . . . . . . . . Recycled Matter . | . . . . . . . . . . . . . . . . Retrieved Matter . | . . . . . . . . . . . . . . . . Retrieved Components 6 | . . . . . . 3 . . . . . . . . 3 Parts Scanalyzed . | . . . . . . . . . . . . . . . . Part Schematics Acquired . | . . . . . . . . . . . . . . . . Parts Damaged . | . . . . . . . . . . . . . . . . Bothacking | -11 -10 -10 -9 -9 -9 -9 -7 -7 -7 -7 -6 -6 -6 -6 -5 ------------ Run | Yrd Mat Min Mat Sto Gar Rec Fac Gar Fac Gar Fac Gar Fac Gar Fac Used RIF Installer 5 | . . . . . 1 . . 1 . 1 . 1 . 1 . Command Fork 1 | . . . . . . . . . . 1 . . . . . Robot Detection 1 | . . . . . . . . . . . . . . 1 . Alert ID Control 1 | . . . . . . . . . . . . 1 . . . Program Shield 1 | . . . . . . . . 1 . . . . . . . Robots Hacked 31 | . . . . . 1 . 2 4 6 . 6 4 . 6 2 Non-combat 16 | . . . . . 1 . 2 2 6 . 4 . . . 1 Combat 15 | . . . . . . . . 2 . . 2 4 . 6 1 Robot Hacks Applied 37 | . . . . . 1 . 2 6 7 . 8 4 . 6 3 parse_system 2 | . . . . . . . . 1 . . 1 . . . . drop_inventory 6 | . . . . . . . . . 3 . 2 . . . 1 deconstruct_bot 1 | . . . . . . . . 1 . . . . . . . purge_threat 1 | . . . . . . . . . . . 1 . . . . disarm_traps 1 | . . . . . . . . . 1 . . . . . . find_garrison 1 | . . . . . . . . . . . . . . . 1 amplify_resonance 4 | . . . . . . . . . . . 1 . . 3 . overwrite_iff 3 | . . . . . . . . . . . 1 . . 2 . formatsys_low 10 | . . . . . 1 . 2 2 3 . 2 . . . . formatsys_high 8 | . . . . . . . . 2 . . . 4 . 1 1 Relay Couplers Released 56 | . . . . . 8 . . 10 . 14 . 13 . 8 3 Machine Destruction 53 | . . . . . 5 . . 10 . 14 . 13 . 8 3 Programmers 3 | . . . . . 3 . . . . . . . . . . Attached 15 | . . . . . 1 . . 2 1 3 1 5 . 1 1 Fabnet Peak Effective % . | . . . . . . . . . . . . . . . . Robots Rewired 16 | . . . . . 4 . . 2 . 4 . 6 . . . Allies Hacked 1 | . . . . . . . 1 . . . . . . . . Hacks Repelled . | . . . . . . . . . . . . . . . . Allies | -11 -10 -10 -9 -9 -9 -9 -7 -7 -7 -7 -6 -6 -6 -6 -5 -------- Run | Yrd Mat Min Mat Sto Gar Rec Fac Gar Fac Gar Fac Gar Fac Gar Fac Total Allies 41 | . . . . . 5 . 2 6 3 6 3 12 . 3 1 Largest Group 18 | . . . . . 3 3 4 6 6 6 8 18 16 16 2 Highest-Rated Group 784 | . . . . . 64 64 78 142 142 241 242 784 690 690 90 Highest-Rated Ally 99 | . . . . . 31 31 31 32 32 95 95 99 90 90 49 Total Orders 13 | . . . . . 1 . 1 1 7 . 1 1 . . 1 STAY 1 | . . . . . . . . . 1 . . . . . . FOLLOW 1 | . . . . . . . . . 1 . . . . . . AID 10 | . . . . . 1 . 1 1 5 . 1 1 . . . EXPLORE 1 | . . . . . . . . . . . . . . . 1 Ally Attacks 390 | . . . . . 23 . 13 4 54 19 50 117 . 99 11 Total Damage 11842 | . . . . . 495 . 247 204 1346 802 1163 4101 . 2988 496 Kills 88 | . . . . . 3 . 3 2 18 6 7 26 . 20 3 Allies Corrupted 1 | . . . . . . . . . . . . . . 1 . Allies Melted . | . . . . . . . . . . . . . . . . Intel | -11 -10 -10 -9 -9 -9 -9 -7 -7 -7 -7 -6 -6 -6 -6 -5 ------- Run | Yrd Mat Min Mat Sto Gar Rec Fac Gar Fac Gar Fac Gar Fac Gar Fac Active Infowar (turns) 10432 | . 388 . . . . . 1285 2427 1496 1594 630 1265 110 873 364 Optics 10044 | . . . . . . . 1285 2427 1496 1594 630 1265 110 873 364 Sensors 1153 | . . . . . . . . 1153 . . . . . . . Seismic 388 | . 388 . . . . . . . . . . . . . . Robot Analysis Total 1 | . 1 . . . . . . . . . . . . . . Derelict Logs Recovered 1 | . . 1 . . . . . . . . . . . . . Drone Launches 3 | . . . . . . . . . . . . . . . 3 Drone Recoveries . | . . . . . . . . . . . . . . . . Exploration | -11 -10 -10 -9 -9 -9 -9 -7 -7 -7 -7 -6 -6 -6 -6 -5 ------------- Run | Yrd Mat Min Mat Sto Gar Rec Fac Gar Fac Gar Fac Gar Fac Gar Fac Turns Passed 15869 | 70 825 407 1054 547 1952 602 1653 2427 1496 1594 630 1265 110 873 364 Spaces Moved 9000 | 42 338 227 572 246 993 361 809 1044 960 1039 468 896 63 702 240 Core 8 | 8 . . . . . . . . . . . . . . . Treads 3413 | 26 148 227 496 246 993 361 749 167 . . . . . . . Legs 625 | 8 190 . . . . . . 321 106 . . . . . . Wheels 4954 | . . . 76 . . . 60 556 854 1039 468 896 63 702 240 Hover . | . . . . . . . . . . . . . . . . Flight . | . . . . . . . . . . . . . . . . Fastest Speed 50 | 50 120 160 140 160 160 160 115 115 101 101 105 105 105 105 100 Average Speed 139 | 131 152 160 157 160 160 160 162 194 120 110 106 105 105 105 115 Slowest Speed 400 | 160 190 160 160 160 240 160 400 400 260 115 115 105 105 105 125 Overloaded Moves . | . . . . . . . . . . . . . . . . Propulsion Burnouts . | . . . . . . . . . . . . . . . . Robots Hopped . | . . . . . . . . . . . . . . . . Potential Cave-ins . | . . . . . . . . . . . . . . . . Cave-ins Triggered . | . . . . . . . . . . . . . . . . Exploration Rate (%) 50 | 4 63 49 55 48 80 72 25 89 41 93 18 88 3 74 9 Regions Visited 15 Branch Regions 3 Pre-discovered Areas 1 | . . 1 . . . . . . . . . . . . . Known Exits Taken 7 | . . . 1 1 . 1 1 . 1 . 1 . 1 . . Unknown Exits Taken 3 | 1 1 1 . . . . . . . . . . . . . Scrap Searched . | . . . . . . . . . . . . . . . . Spaces Dug 85 | . . . . 11 2 . 1 22 12 . 1 17 . 15 4 Terrain Destroyed 606 | . . . . 36 4 1 18 138 112 31 21 52 . 182 11 Melee 14 | . . . . 1 . . . . 9 . . . . . 4 Projectile 104 | . . . . . . 1 4 22 34 23 8 10 . . 2 AOE 488 | . . . . 35 4 . 14 116 69 8 13 42 . 182 5 Terrain Rammed . | . . . . . . . . . . . . . . . . Walls Destroyed . | . . . . . . . . . . . . . . . . Machines Disabled . | . . . . . . . . . . . . . . . . Actions | -11 -10 -10 -9 -9 -9 -9 -7 -7 -7 -7 -6 -6 -6 -6 -5 --------- Run | Yrd Mat Min Mat Sto Gar Rec Fac Gar Fac Gar Fac Gar Fac Gar Fac Total 11195 | 55 579 252 665 339 1223 381 977 1321 1177 1322 554 1137 106 797 310 Wait 885 | . 191 9 19 44 74 12 32 89 88 63 33 116 44 21 50 Move 8989 | 41 337 226 571 246 992 360 809 1043 960 1038 468 895 62 701 240 Hop . | . . . . . . . . . . . . . . . . Pick Up 109 | 8 5 4 11 2 6 . 16 26 8 7 2 11 . 2 1 Fast Attach 54 | 4 1 1 2 1 3 . 2 17 7 6 5 1 . 3 1 Attach 42 | 2 1 . 1 . 2 . 6 13 4 5 . 1 . 3 4 Detach 5 | . . . . . . . 1 2 1 1 . . . . . Swap 97 | . 4 3 8 8 11 3 15 7 9 7 2 17 . 3 . Drop 119 | . 3 . 16 4 11 2 10 25 13 8 6 14 . 6 1 Fire 731 | . 34 8 34 30 71 2 82 94 77 138 38 73 . 42 8 Melee 19 | . . . . 1 2 . 1 . 10 . . . . . 5 Ram 1 | . . . . . . . . . . 1 . . . . . Kick 3 | . 3 . . . . . . . . . . . . . . Crush 14 | . . 1 3 3 4 2 1 . . . . . . . . Escape Stasis 76 | . . . . . . . . 4 . 48 . 8 . 16 . Rewire 51 | . . . . . 47 . 2 1 . . . 1 . . . Trap . | . . . . . . . . . . . . . . . . Miscellaneous . | . . . . . . . . . . . . . . . . Route ------- -11/Scrapyard -10/Materials (discovered 3 exits: *Mat / *Min / [*Sub]) -10/Mines (discovered 2 exits: *Mat x2) -9/Materials (discovered 4 exits: [*Mat x2] / *Min / *Sto) -9/Storage -9/Garrison (discovered 3 exits: *Rec x3) -9/Recycling -7/Factory (discovered 2 exits: *Fac / Gar) -7/Garrison (discovered 3 exits: *Fac x3) -7/Factory (discovered 3 exits: *Fac / [*Low] / Gar) -7/Garrison (discovered 3 exits: *Fac x3) -6/Factory (discovered 2 exits: [*Low] / Gar) -6/Garrison (discovered 3 exits: *Fac x3) -6/Factory -6/Garrison (discovered 2 exits: *Fac x2) -5/Factory History --------- Turn | Location | Event 7 | -11/Scrapyard | Discovered new exit (range 15) 71 | -11/Scrapyard | Entered Materials 288 | -10/Materials | Discovered new exit (range 15) 312 | -10/Materials | Build established: Mutant 620 | -10/Materials | Discovered new exit (range 9) 802 | -10/Materials | Discovered new exit (range 9) 871 | -10/Materials | Derelicts attacked the area 896 | -10/Materials | Entered Mines 1047 | -10/Mines | Discovered new exit (range 10) 1176 | -10/Mines | Learned location of Storage (-9) 1264 | -10/Mines | Discovered new exit (range 6) 1283 | -10/Mines | Met a Derelict who couldn't figure out how to use a Trap Extractor 1303 | -10/Mines | Entered Materials 1303 | -9/Materials | Evolved 2 slots: Propulsion x1, Utility x1 1571 | -9/Materials | Central database locked down 1578 | -9/Materials | Discovered new exit (range 8) 1805 | -9/Materials | Discovered new exit (range 9) 2056 | -9/Materials | Build established: Scavenger-Mutant 2061 | -9/Materials | Discovered new exit (range 6) 2160 | -9/Materials | Discovered new exit (range 16) 2192 | -9/Materials | Identified exit to Mines 2192 | -9/Materials | Identified exit to Storage 2357 | -9/Materials | Entered Storage 2904 | -9/Storage | Identified exit to Garrison 2904 | -9/Storage | Entered Garrison 2998 | -9/Garrison | Triggered checkpoint 3140 | -9/Garrison | Triggered checkpoint 3184 | -9/Garrison | Triggered checkpoint 3187 | -9/Garrison | Destroyed 7 combat bots 3446 | -9/Garrison | Triggered checkpoint 3480 | -9/Garrison | Discovered new exit (range 8) 3726 | -9/Garrison | Triggered checkpoint 3867 | -9/Garrison | Discovered new exit (range 9) 3898 | -9/Garrison | Triggered checkpoint 4084 | -9/Garrison | Triggered checkpoint 4107 | -9/Garrison | Discovered new exit (range 13) 4176 | -9/Garrison | Triggered checkpoint 4193 | -9/Garrison | Installed Relay Interface Framework 4581 | -9/Garrison | Garrison Relay disabled 4856 | -9/Garrison | Entered Recycling 4856 | -9/Recycling | Accompanied by 3 allies 5012 | -9/Recycling | Identified exit to Factory 5458 | -9/Recycling | Entered Factory 5458 | -7/Factory | Accompanied by 3 allies 5458 | -7/Factory | Evolved 4 slots: Propulsion x1, Utility x2, Weapon x1 5847 | -7/Factory | Build established: Scavenger-Tank 6162 | -7/Factory | Garrison activated, responded to threat 6241 | -7/Factory | Identified exit to Garrison 6545 | -7/Factory | P-60 Hacker assimilated allied Machinist 2a 6658 | -7/Factory | First assault squad dispatched 6904 | -7/Factory | Lost 4 parts (3n1u) 7031 | -7/Factory | Discovered new exit (range 5) 7111 | -7/Factory | Identified exit to Garrison 7111 | -7/Factory | Entered Garrison 7111 | -7/Garrison | Accompanied by 1 ally 7580 | -7/Garrison | Phase Generator disabled 7869 | -7/Garrison | Triggered checkpoint 7918 | -7/Garrison | Garrison Relay disabled 8000 | -7/Garrison | Garrison Relay disabled 8169 | -7/Garrison | Triggered checkpoint 8206 | -7/Garrison | Triggered checkpoint 8249 | -7/Garrison | Destroyed 7 combat bots 8312 | -7/Garrison | Build established: Bothacker-Skirmisher 8326 | -7/Garrison | Discovered new exit (range 13) 8337 | -7/Garrison | Expanded RIF knowledge: Program Shield 8389 | -7/Garrison | Identified exit to Factory 8605 | -7/Garrison | Lost 3 parts (1n1u1w) 8858 | -7/Garrison | Discovered exit to Factory (range 11) 8917 | -7/Garrison | Triggered checkpoint 8965 | -7/Garrison | Garrison Relay disabled 9097 | -7/Garrison | Triggered checkpoint 9439 | -7/Garrison | Discovered exit to Factory (range 11) 9538 | -7/Garrison | Entered Factory 9538 | -7/Factory | Accompanied by 6 allies 9604 | -7/Factory | Build established: Bothacker-Tank 9977 | -7/Factory | Discovered new exit (range 2) 10187 | -7/Factory | Assembled infested ambush trap array 10338 | -7/Factory | First assault squad dispatched 10467 | -7/Factory | Core integrity fell below 50% 10789 | -7/Factory | Discovered new exit (range 5) 11033 | -7/Factory | Identified exit to Garrison 11034 | -7/Factory | Entered Garrison 11034 | -7/Garrison | Accompanied by 2 allies 11124 | -7/Garrison | Triggered checkpoint 11138 | -7/Garrison | Triggered checkpoint 11140 | -7/Garrison | Triggered checkpoint 11239 | -7/Garrison | System corruption reached 10% 11315 | -7/Garrison | Garrison Relay disabled 11566 | -7/Garrison | Discovered new exit (range 17) 11574 | -7/Garrison | Triggered checkpoint 11664 | -7/Garrison | Garrison Relay disabled 11830 | -7/Garrison | Triggered checkpoint 11837 | -7/Garrison | Core integrity fell below 20% 11935 | -7/Garrison | Discovered new exit (range 5) 12068 | -7/Garrison | Found embedded Infiltrators 12122 | -7/Garrison | Expanded RIF knowledge: Command Fork 12150 | -7/Garrison | Discovered new exit (range 12) 12162 | -7/Garrison | Triggered checkpoint 12196 | -7/Garrison | Triggered checkpoint 12251 | -7/Garrison | Garrison Relay disabled 12318 | -7/Garrison | Triggered checkpoint 12385 | -7/Garrison | Garrison Relay disabled 12492 | -7/Garrison | Triggered checkpoint 12628 | -7/Garrison | Entered Factory 12628 | -6/Factory | Accompanied by 5 allies 12628 | -6/Factory | Evolved 2 slots: Utility x2 12649 | -6/Factory | Build established: Bothacker-Skirmisher 12707 | -6/Factory | Central database locked down 12978 | -6/Factory | First assault squad dispatched 13034 | -6/Factory | Discovered new exit (range 20) 13216 | -6/Factory | Garrison activated, responded to threat 13250 | -6/Factory | Identified exit to Garrison 13258 | -6/Factory | Entered Garrison 13258 | -6/Garrison | Accompanied by 7 allies 13276 | -6/Garrison | Triggered checkpoint 13314 | -6/Garrison | Triggered checkpoint 13373 | -6/Garrison | Garrison Relay disabled 13404 | -6/Garrison | Build established: Bothacker-Tank 13522 | -6/Garrison | Rewired Striker 13527 | -6/Garrison | Rewired Striker 13582 | -6/Garrison | Found embedded Infiltrators 13598 | -6/Garrison | Triggered checkpoint 13655 | -6/Garrison | Garrison Relay disabled 13716 | -6/Garrison | Triggered checkpoint 13764 | -6/Garrison | Triggered checkpoint 13796 | -6/Garrison | Triggered checkpoint 13855 | -6/Garrison | Expanded RIF knowledge: Alert ID Control 13892 | -6/Garrison | Triggered checkpoint 13954 | -6/Garrison | Garrison Relay disabled 13956 | -6/Garrison | Triggered checkpoint 14034 | -6/Garrison | Discovered new exit (range 14) 14055 | -6/Garrison | Spotted B-75 Beast 14055 | -6/Garrison | Spotted B-75 Beast 14066 | -6/Garrison | Destroyed B-75 Beast 14068 | -6/Garrison | Allies destroyed B-75 Beast 14071 | -6/Garrison | Phase Generator disabled 14172 | -6/Garrison | Build established: Botlord-Tank 14203 | -6/Garrison | Discovered new exit (range 18) 14302 | -6/Garrison | Triggered checkpoint 14394 | -6/Garrison | Triggered checkpoint 14432 | -6/Garrison | Triggered checkpoint 14470 | -6/Garrison | Discovered new exit (range 11) 14523 | -6/Garrison | Entered Factory 14523 | -6/Factory | Accompanied by 16 allies 14592 | -6/Factory | Identified exit to Garrison 14633 | -6/Factory | Entered Garrison 14633 | -6/Garrison | Accompanied by 16 allies 14684 | -6/Garrison | Spotted B-75 Beast 14689 | -6/Garrison | Triggered checkpoint 14691 | -6/Garrison | Triggered checkpoint 14691 | -6/Garrison | Allies destroyed B-75 Beast 14709 | -6/Garrison | P-60 Hacker assimilated allied 5W-AE6(x) 14717 | -6/Garrison | Triggered checkpoint 14767 | -6/Garrison | Lost 6 allies 14849 | -6/Garrison | Triggered checkpoint 15096 | -6/Garrison | Discovered new exit (range 13) 15120 | -6/Garrison | Phase Generator disabled 15153 | -6/Garrison | Expanded RIF knowledge: Robot Detection 15233 | -6/Garrison | Triggered checkpoint 15356 | -6/Garrison | Triggered checkpoint 15381 | -6/Garrison | Discovered new exit (range 13) 15423 | -6/Garrison | Build established: Botlord-Mutant 15506 | -6/Garrison | Entered Factory 15506 | -5/Factory | Accompanied by 1 ally 15506 | -5/Factory | Evolved 2 slots: Utility x2 15562 | -5/Factory | Central database locked down 15660 | -5/Factory | Lost 4 parts (1p1n1u1w) 15806 | -5/Factory | First assault squad dispatched 15817 | -5/Factory | Lost 3 allies 15847 | -5/Factory | Garrison activated, responded to threat 15870 | -5/Factory | Self-destructed Last Messages --------------- 15861_ Slug penetrates Y-64 Sentinel. 15861_ Y-64 Sentinel destroyed. 15861_ Prc. Grenade Launcher destroyed. 15861_ Destroyed Prc. Grenade Launcher. 15862_ Sentinel 6a heat damages Imp. Medium Armor Plating. 15862_ U-05 Engineer lays Concrete. 15862_ Slug penetrates Sentinel 6a. 15863_ U-05 Engineer lays Concrete. 15863_ K-01 Serf collects debris. 15864_ U-05 Engineer lays Concrete. 15864_ Slug penetrates Sentinel 6a. 15864_ Y-64 Sentinel destroyed. 15865_ Sentinel 6a destroyed. 15865_ Slug penetrates Wall. 15865_ K-01 Serf collects debris. 15865_ U-05 Engineer lays Concrete. 15866_ U-05 Engineer builds a Wall. 15868_ Relay Coupler [Grunt] destroyed. 15869_ K-01 Serf collects debris. Map ----- +----------------------------------------------------+ | """###+##+########### #?????????????????? ????? | | Y"# ######?# #??######?????????? ????? | | """# """ # ### #### ##????????? ????? | | # "T" # ""]# #?# #????????? ????? | | # """ # "Y # ]*#?### ##????????? ????? | | """ # """ # "" + ]]*#??# #????????? ????? | | """ # """ # # ]*#### #????????# #???? | | """ # # = # ! #????????# #???? | | """ # ! ########+###### #????????# #???? | | ###########???# ## ########## #???? | | #?????????????# ## # """" # #???? | | #######?????????????# """" ## # """" # #???? | | ????????????????????# """" ## # """" # #???? | | ????????????????????# """" ## #! """" # #???? | | ????????????????????# """" ## # # #???? | | ???????????????????##%"""" ## %# ! # #???? | | ????????????????????; " "" ## # # #???? | | ?????????????????##?# uu # + !! + #???? | | ?????????????????# ## # #u # !! # #???? | | ??????????????????# # % # %########## #???? | | ???????????????????# k #????????# #???? | | ???????????????????## k #????????# #???? | | ???????????????????# ![ kY% #?????#### #???? | | ???????????????????## %!! #?????# #???? | | ???????????????????## s%g""" # #?????# #???? | | ???????????????????# % @=G" # #?????# #???? | | ???????????????????## " " # " ????# ???? | | ????????????????????# !! # # ??# ##/##??? | | ????????????????????### ###### #? # ? ???? | | ??????????????????????#! ?????#o #????## ? ???? | | ??????????????????????# ????? =?????#?? ??? | | ??????????????????????# ????? ???????? ??? | | ??????????????????????# ????? ! ???????? ??? | | ??????????????????????# ????? ???????? ?? | | ??????????????????????# ?????#! ???????? ?? | | ??????????????????????##?????#####?????????* ?? | | ???????????????????????????????????????????######? | | ?????????????????????????????????????????????????? | | ?????????????????????????????????????????????????? | | ?????????????????????????????????????????????????? | | ?????????????????????????????????????????????????? | | ?????????????????????????????????????????????????? | | ?????????????????????????????????????????????????? | | ?????????????????????????????????????????????????? | | ?????????????????????????????????????????????????? | | ?????????????????????????????????????????????????? | | ?????????????????????????????????????????????????? | | ?????????????????????????????????????????????????? | | ?????????????????????????????????????????????????? | | ?????????????????????????????????????????????????? | +----------------------------------------------------+ Best States ------------- Heat Dissipation 70 Energy Generation 21 Energy Capacity 315 Matter Stores 300 Matter Capacity 300 Sight Range 20 Robot Scan Range 15 Terrain Scan Density 10 Armor Coverage 600 Evasion (%) 55 Recoil Reduction 4 Relay Coupler Types 3 Relay Coupler Value 98 Item Schematics ----------------- None Robot Schematics ------------------ None Fabricated ------------ Nothing Repaired ---------- Nothing Studied --------- Mni. Grenade Launcher | -9/Materials | Hacked Wheel | -9/Materials | Hacked Arm. Huge Wheel | -6/Factory | Hacked Hvy. Mass Driver | -5/Factory | Hacked Arm. Wheel | -5/Factory | Hacked Imp. Deuterium Engine | -5/Factory | Hacked Neutrino Core | -5/Factory | Hacked Alien Tech Used ----------------- None Achievements -------------- None Challenges ------------ None Game ------ Seed ImpactZioniteChainsaw Manual? 0 Play Time 02:15:17 Cumulative 444.1 hours Start 2026.01.02 @ 15:33:55 End 2026.01.11 @ 21:09:59 Sessions 5 Manual Loads 0 Difficulty Rogue Special Mode None Game No. 211 Rogue 211 Adventurer 0 Explorer 0 Win Type - Total 13 Types 9/0/2/0/0/0/0/1/0/1 Lore% 85 Gallery% 82 Achievement% 61 Wizard Run 0 Options --------- Layout 1 ASCII 0 Keyboard 0 Movement Mouse Keybinds 0 Fullscreen 1 Font 24/Smallcaps Map View 50x35 Zoom Use 0% Tactical HUD 1 Map Filters NONE Filters NONE Steam 1 RUN: d7b7ba02-7f33-4eba-bc0c-3f054cb2d901